bitfinex/quotes_SOLUSD_20240925
["timestamp","ask_amount","ask_price","bid_price","bid_amount"]
[1727304358984,6.6989,149.28,149.25,1.33980421]
[1727304360096,6.6989,149.28,149.24,18.79226021]
[1727304360606,20.0,149.3,149.23,32.7221]
[1727304360805,20.0,149.3,149.23,15.97]
[1727304361108,6.7002,149.25,149.23,15.97]
[1727304361315,6.6998,149.26,149.21,6.7018]
[1727304361687,26.6988,149.28,149.24,6.7004]
[1727304361899,6.6993,149.27,149.23,6.7009]
[1727304362206,6.6993,149.27,149.22,35.54626021]
[1727304363104,6.6993,149.27,149.23,6.701]
[1727304365488,0.25098,149.29,149.22,16.7531]
[1727304365695,20.0,149.28,149.22,16.7531]
[1727304366094,6.7006,149.24,149.21,12.09186021]
[1727304366297,6.7006,149.24,149.2,21.9975]
[1727304367110,6.7019,149.21,149.19,0.2442222]
[1727304367888,6.7016,149.22,149.19,0.2442222]
[1727304368089,20.12549,149.24,149.19,0.2442222]
[1727304368291,6.7024,149.2,149.19,0.2442222]
[1727304368484,26.7024,149.2,149.19,0.2442222]
[1727304368714,50.479284,149.2,149.19,0.2442222]
[1727304369716,50.730264,149.2,149.19,0.2442222]
[1727304370515,91.040264,149.2,149.19,2.22e-05]
[1727304371901,50.730264,149.2,149.19,2.22e-05]
[1727304376228,0.25098,149.17,149.15,0.2442222]
[1727304376512,56.482,149.18,149.15,0.2442222]
[1727304376513,100.732064,149.16,149.15,0.2442222]
[1727304376723,100.732064,149.16,149.15,2.22e-05]
[1727304376932,100.732064,149.16,149.12,0.1714593]
[1727304376933,26.95648,149.13,149.12,0.1714593]
[1727304377105,50.733364,149.13,149.12,0.1714593]
[1727304377612,50.733364,149.13,149.12,5.93e-05]
[1727304379223,50.0,149.11,149.1,0.2442222]
[1727304379416,100.734264,149.11,149.1,0.2442222]
[1727304380529,50.734264,149.11,149.1,0.2442222]
[1727304381121,100.734264,149.11,149.1,0.2442222]
[1727304382619,100.734264,149.11,149.03,0.1714593]
[1727304382620,50.0,149.09,149.03,0.1714593]
[1727304382797,50.736064,149.07,149.03,0.1714593]
[1727304384529,50.485084,149.07,149.03,0.1714593]
[1727304384816,50.610574,149.07,149.03,0.1714593]
[1727304384998,50.736064,149.07,149.03,0.1714593]
[1727304385711,50.610574,149.07,149.03,0.1714593]
[1727304385923,94.027864,149.07,149.03,0.1714593]
[1727304386132,50.737464,149.04,149.03,0.1714593]
[1727304387643,57.7310563,149.04,149.03,0.1714593]
[1727304388843,50.737464,149.04,149.03,0.1714593]
[1727304391133,50.486484,149.04,149.03,0.1714593]
[1727304391329,50.611974,149.04,149.03,0.1714593]
[1727304391536,50.737464,149.04,149.03,0.1714593]
[1727304393023,57.7346014,149.04,149.03,0.1714593]
[1727304395414,26.96148,149.02,149.01,0.203382]
[1727304395629,50.738364,149.02,149.01,0.203382]
[1727304399433,26.7105,149.02,149.01,0.203382]
[1727304399635,6.7105,149.02,149.01,0.203382]
[1727304400647,73.76909814,149.07,149.01,0.203382]
[1727304400862,66.7712,149.07,149.01,0.203382]
[1727304401528,6.71,149.03,149.01,0.203382]
[1727304401731,6.7091,149.05,149.01,0.203382]
[1727304401951,20.0,149.04,149.01,1.54544979]
[1727304403163,20.0,149.05,149.02,15.5591]
[1727304403538,20.0,149.05,149.02,22.2694]
[1727304403753,66.7642,149.13,149.03,1.34187043]
[1727304403957,50.0,149.11,149.03,1.34187043]
[1727304404148,16.7642,149.13,149.03,8.05187043]
[1727304404149,66.7642,149.13,149.03,8.05187043]
[1727304404349,6.7074,149.09,149.03,8.05187043]
[1727304404568,66.7642,149.13,149.03,8.05187043]
[1727304404736,6.7083,149.07,149.02,39.0449]
[1727304405143,20.0,149.06,149.02,39.0449]
[1727304405332,20.0,149.06,149.02,15.5591]
[1727304405559,20.0,149.08,149.02,15.5591]
[1727304405749,26.71,149.03,149.02,15.5591]
[1727304405942,20.0,149.03,149.02,15.5591]
[1727304406550,16.7696,149.08,149.02,22.2695]
[1727304406551,6.7087,149.06,149.02,22.2695]
[1727304406759,20.0,149.05,149.02,15.5591]
[1727304407565,20.0,149.03,149.02,15.5591]
[1727304408668,26.71,149.03,149.02,15.5591]
[1727304409042,26.7105,149.02,149.01,0.203382]
[1727304411781,50.612874,149.02,149.01,0.203382]
[1727304413072,50.738364,149.02,149.01,0.203382]
[1727304418375,50.487384,149.02,149.01,0.203382]
[1727304418973,6.7101,149.03,149.01,0.203382]
[1727304419160,50.0,149.07,149.01,0.203382]
[1727304419161,6.7105,149.02,149.01,0.203382]
[1727304419361,6.71,149.03,149.01,0.203382]
[1727304420079,57.00376861,149.07,149.01,0.203382]
[1727304420080,6.7105,149.02,149.01,0.203382]
[1727304420583,20.0,149.02,149.01,0.203382]
[1727304420957,26.7105,149.02,149.01,0.203382]
[1727304422158,20.0,149.02,149.01,0.203382]
[1727304422773,20.0,149.08,149.01,0.203382]
[1727304423072,50.0,149.09,149.01,12.33935964]
[1727304423280,6.7096,149.04,149.01,0.203382]
[1727304423481,97.31259672,149.09,149.01,0.203382]
[1727304423772,6.7092,149.05,149.01,0.203382]
[1727304424352,6.7096,149.04,149.01,0.203382]
[1727304424678,24.027864,149.08,149.01,8.2563755]
[1727304424887,6.7083,149.07,149.02,6.7104]
[1727304425185,6.7083,149.07,149.02,18.84637764]
[1727304425356,23.902374,149.08,149.03,8.05182142]
[1727304425357,6.7078,149.08,149.03,8.05182142]
[1727304425555,20.0,149.1,149.03,6.7099]
[1727304425877,20.0,149.07,149.03,6.7099]
[1727304426655,20.0,149.07,149.04,16.2948]
[1727304426859,20.0,149.08,149.04,23.0043]
[1727304427178,66.7642,149.13,149.05,8.05081373]
[1727304427179,6.707,149.1,149.05,8.05081373]
[1727304427364,6.7074,149.09,149.04,23.0043]
[1727304427564,6.7081,149.08,149.04,16.2948]
[1727304428062,73.76552966,149.13,149.04,16.2948]
[1727304428063,6.7083,149.07,149.04,16.2948]
[1727304429566,6.7077,149.09,149.04,16.2948]
[1727304429774,20.0,149.08,149.04,16.2948]
[1727304430362,6.708,149.08,149.04,16.2948]
[1727304430568,6.7082,149.07,149.04,16.2948]
[1727304431887,6.71,149.03,149.01,0.203382]
[1727304432109,26.7105,149.02,149.01,0.203382]
[1727304433384,50.738364,149.02,149.01,0.203382]
[1727304434984,50.612874,149.02,149.01,0.203382]
[1727304435292,50.487384,149.02,149.01,0.203382]
[1727304437191,50.738364,149.02,149.01,0.203382]
[1727304437788,98.05692397,149.02,149.01,0.203382]
[1727304440108,98.05692397,149.02,148.96,0.3025431]
[1727304440109,6.7127,148.97,148.96,0.3025431]
[1727304440411,43.902374,148.97,148.96,0.3025431]
[1727304440713,50.615074,148.97,148.96,0.3025431]
[1727304440898,26.7127,148.97,148.96,0.3025431]
[1727304441304,50.740564,148.97,148.96,0.3025431]
[1727304441504,50.489584,148.97,148.96,0.3025431]
[1727304442008,20.0,148.97,148.96,0.3025431]
[1727304442213,26.7127,148.97,148.96,0.3025431]
[1727304442608,50.740564,148.97,148.96,0.3025431]
[1727304444011,50.615074,148.97,148.96,0.3025431]
[1727304444199,50.740564,148.97,148.96,0.3025431]
[1727304445008,50.615074,148.97,148.96,0.3025431]
[1727304445207,20.0,148.97,148.96,0.3025431]
[1727304445921,6.7122,148.99,148.96,0.3025431]
[1727304446294,20.0,148.98,148.96,0.3025431]
[1727304447413,20.0,149.0,148.96,0.3025431]
[1727304447790,20.0,149.0,148.97,6.0906]
[1727304448401,20.0,149.0,148.97,6.1949762]
[1727304448588,6.7107,149.02,148.97,6.1949762]
[1727304448805,50.0,149.06,148.99,15.6238]
[1727304449202,6.71,149.03,148.99,15.6238]
[1727304449392,6.7105,149.02,148.99,15.6238]
[1727304449590,50.0,149.04,148.99,15.6238]
[1727304449796,6.7114,149.0,148.97,6.1949762]
[1727304450211,20.0,149.0,148.97,6.1949762]
[1727304450394,6.7123,148.98,148.97,6.1949762]
[1727304451011,26.7123,148.98,148.97,0.1043762]
[1727304451312,50.489184,148.98,148.97,0.1043762]
[1727304451621,20.25098,149.02,148.97,0.1043762]
[1727304451801,20.0,149.0,148.97,0.1043762]
[1727304452124,26.83689,149.0,148.97,0.1043762]
[1727304452424,26.7114,149.0,148.97,0.1043762]
[1727304453800,20.0,149.0,148.97,0.1043762]
[1727304454024,20.0,149.01,148.97,6.8169762]
[1727304454323,20.0,149.01,148.98,6.7121]
[1727304454504,7.00942869,149.06,148.99,6.7118]
[1727304454708,6.7095,149.05,149.0,22.1478]
[1727304455134,6.7096,149.04,149.0,22.1478]
[1727304456820,20.0,149.03,149.0,15.9562]
[1727304457023,26.7103,149.03,149.0,15.9562]
[1727304458203,6.7109,149.01,148.97,0.1043762]
[1727304458404,0.25098,149.04,148.97,0.1043762]
[1727304458603,6.7118,149.0,148.97,0.1043762]
[1727304458828,6.7109,149.01,148.97,0.1043762]
[1727304459915,74.027864,149.04,148.97,0.1043762]
[1727304459916,6.7114,149.0,148.97,0.1043762]
[1727304462621,30.489084,148.99,148.97,0.1043762]
[1727304462827,66.76539,149.04,148.97,0.1043762]
[1727304463005,6.7114,149.0,148.97,0.1043762]
[1727304463212,6.7119,148.99,148.97,0.1043762]
[1727304464213,6.7114,149.0,148.97,0.1043762]
[1727304465443,20.0,149.0,148.97,0.1043762]
[1727304466138,6.0737,149.1,148.98,1.34242001]
[1727304466311,20.0,149.02,148.99,6.7117]
[1727304466512,20.0,149.02,148.98,30.0703]
[1727304466712,6.7109,149.01,148.98,6.5775]
[1727304467244,6.7105,149.02,148.98,6.5775]
[1727304467421,6.7105,149.02,148.98,13.2897]
[1727304468016,6.7101,149.03,148.99,6.7118]
[1727304468428,6.7101,149.03,148.98,13.2897]
[1727304469034,6.7096,149.04,148.99,6.7117]
[1727304469336,20.0,149.03,148.99,6.7117]
[1727304470026,6.7096,149.04,149.0,8.0534539]
[1727304470223,20.0,149.04,148.98,6.5775]
[1727304470522,26.7097,149.04,148.99,6.7117]
[1727304470829,20.0,149.04,148.99,6.7118]
[1727304471135,26.7097,149.04,148.99,6.7118]
[1727304471342,6.7111,149.01,148.98,6.5775]
[1727304471520,6.7111,149.01,148.97,16.8851762]
[1727304471521,6.7114,149.0,148.97,0.1043762]
[1727304471720,6.7118,148.99,148.97,0.1043762]
[1727304472616,6.7123,148.98,148.97,0.1043762]
[1727304473119,20.0,148.99,148.97,0.1043762]
[1727304474038,20.0,149.01,148.97,0.1043762]
[1727304474240,26.7123,148.98,148.97,0.1043762]
[1727304475137,20.0,148.98,148.97,0.1043762]
[1727304475541,26.7123,148.98,148.97,0.1043762]
[1727304478449,50.614674,148.98,148.97,0.1043762]
[1727304479121,50.489184,148.98,148.97,0.1043762]
[1727304479322,26.7123,148.98,148.97,0.1043762]
[1727304479738,20.0,148.98,148.97,0.1043762]
[1727304480441,20.0,148.99,148.97,0.1043762]
[1727304481223,16.7733,149.05,148.97,6.8169762]
[1727304481224,26.7108,149.02,148.97,6.8169762]
[1727304481438,20.0,149.0,148.97,0.1043762]
[1727304481636,20.0,149.01,148.97,6.8169762]
[1727304481839,20.0,149.01,148.98,16.575]
[1727304482024,26.7113,149.01,148.98,16.575]
[1727304482221,6.7106,149.02,148.98,24.62946097]
[1727304482528,16.7733,149.05,148.98,24.62946097]
[1727304482729,6.7101,149.03,148.98,24.62946097]
[1727304483427,20.0,149.05,148.98,16.575]
[1727304483819,20.0,149.03,148.98,16.575]
[1727304484020,20.0,149.05,148.98,16.575]
[1727304484244,20.0,149.01,148.98,16.575]
[1727304484431,26.711,149.01,148.98,16.575]
[1727304485231,6.711,149.01,148.98,16.575]
[1727304485932,20.0,149.0,148.97,0.1043762]
[1727304486139,6.7123,148.98,148.97,0.1043762]
[1727304486455,50.614674,148.98,148.97,0.1043762]
[1727304487831,50.489184,148.98,148.97,0.1043762]
[1727304488344,50.740164,148.98,148.97,0.1043762]
[1727304488967,100.740164,148.98,148.97,0.1043762]
[1727304490746,100.740164,148.98,148.94,0.4114711]
[1727304490747,100.741464,148.95,148.94,0.4114711]
[1727304490955,100.741464,148.95,148.91,0.2400118]
[1727304490956,50.742864,148.92,148.91,0.2400118]
[1727304491170,26.7168,148.88,148.87,0.2400118]
[1727304491450,50.619174,148.88,148.87,0.2400118]
[1727304491651,50.744664,148.88,148.87,0.2400118]
[1727304491841,20.0,148.88,148.87,0.2400118]
[1727304492367,16.7843,148.95,148.87,0.2400118]
[1727304492368,20.0,148.89,148.87,0.2400118]
[1727304492652,20.0,148.91,148.87,0.2400118]
[1727304492851,20.0,148.91,148.87,6.9571118]
[1727304493026,6.7136,148.96,148.89,6.7163]
[1727304493351,20.0,148.93,148.89,6.1759]
[1727304493544,6.7135,148.96,148.89,6.1759]
[1727304493733,50.0,149.0,148.91,15.3255]
[1727304493928,6.7128,148.97,148.91,22.0409]
[1727304494158,50.0,149.0,148.91,15.3255]
[1727304494333,6.7141,148.94,148.91,15.3255]
[1727304494847,6.7146,148.93,148.91,15.3255]
[1727304495552,26.715,148.92,148.89,6.1759]
[1727304495956,6.7146,148.93,148.89,6.1759]
[1727304496159,20.0,148.92,148.89,6.1759]
[1727304496736,20.0,148.92,148.87,16.7563118]
[1727304498047,24.027864,148.96,148.88,8.0598764]
[1727304498247,20.0,148.95,148.88,6.7167]
[1727304498451,20.0,148.93,148.88,6.7167]
[1727304498647,20.0,148.9,148.87,16.7563118]
[1727304499153,20.0,148.91,148.87,16.7563118]
[1727304499864,74.027864,148.96,148.87,16.7563118]
[1727304499865,20.0,148.93,148.87,16.7563118]
[1727304500038,0.12549,148.92,148.87,16.7563118]
[1727304500240,20.0,148.91,148.87,16.7563118]
[1727304500745,26.7154,148.91,148.87,16.7563118]
[1727304501136,20.0,148.91,148.87,16.7563118]
[1727304501345,20.0,148.88,148.87,16.7563118]
[1727304503467,16.3619,148.96,148.87,16.7563118]
[1727304503468,20.0,148.92,148.87,16.7563118]
[1727304503668,20.0,148.89,148.87,0.2400118]
[1727304504038,6.7168,148.88,148.87,0.2400118]
[1727304504243,20.0,148.88,148.87,0.2400118]
[1727304505950,50.619174,148.88,148.87,0.2400118]
[1727304506840,50.744664,148.88,148.87,0.2400118]
[1727304508373,50.619174,148.88,148.87,0.2400118]
[1727304508864,43.776884,148.88,148.87,0.2400118]
[1727304509080,20.0,148.88,148.87,0.2400118]
[1727304509246,6.7165,148.89,148.87,0.2400118]
[1727304509445,6.7151,148.92,148.87,0.2400118]
[1727304509748,66.597,148.96,148.88,1.34325122]
[1727304509957,6.715,148.92,148.87,0.2400118]
[1727304510348,50.0,148.94,148.87,0.2400118]
[1727304510663,6.7161,148.9,148.87,0.2400118]
[1727304511169,20.0,148.88,148.87,0.2400118]
[1727304513559,6.7154,148.92,148.87,0.2400118]
[1727304513758,6.7148,148.93,148.87,6.9570118]
[1727304513986,30.491884,148.92,148.87,0.2400118]
[1727304514298,26.7158,148.91,148.87,0.2400118]
[1727304515154,20.0,148.91,148.87,0.2400118]
[1727304515379,20.0,148.91,148.87,1.58326042]
[1727304515961,20.0,148.89,148.87,0.2400118]
[1727304516665,20.0,148.91,148.87,0.2400118]
[1727304516875,56.1945,148.98,148.88,15.4428]
[1727304517190,50.0,149.0,148.91,6.715]
[1727304517363,50.0,149.0,148.92,1.34278658]
[1727304517565,6.7127,148.97,148.91,6.715]
[1727304517767,6.7127,148.97,148.89,16.79]
[1727304517986,6.7127,148.98,148.92,6.7149]
[1727304518291,6.7118,149.0,148.95,6.7136]
[1727304518459,6.7109,149.01,148.96,1.34245489]
[1727304518659,0.2400118,149.02,148.94,21.8532]
[1727304518966,6.9505118,149.02,148.96,6.713]
[1727304519166,6.9505118,149.02,148.97,1.34233586]
[1727304519486,0.2400118,149.02,148.94,21.8532]
[1727304519666,6.7114,149.0,148.94,28.5672]
[1727304519869,6.7109,149.01,148.95,6.7136]
[1727304520381,0.2400118,149.02,148.96,1.34236431]
[1727304520585,0.2400118,149.02,148.95,16.783]
[1727304520778,0.2400118,149.02,148.96,6.7127]
[1727304521291,0.2400118,149.02,148.98,16.7807]
[1727304522765,6.711,149.01,148.96,6.7131]
[1727304522971,20.0,149.0,148.96,6.7131]
[1727304523374,20.0,149.0,148.97,6.7123]
[1727304523574,20.2400118,149.02,148.98,1.3422006]
[1727304523895,0.2400118,149.02,149.0,6.7112]
[1727304524073,0.2400118,149.02,149.01,1.34194882]
[1727304524273,0.2400118,149.02,148.98,6.712]
[1727304524601,0.2400118,149.02,148.99,6.7114]
[1727304524778,0.2400118,149.02,149.0,1.34195314]
[1727304524975,0.2400118,149.02,149.0,8.05325314]
[1727304525588,0.2400118,149.02,149.0,1.34195314]
[1727304525806,0.2400118,149.02,149.0,6.7113]
[1727304526417,0.2400118,149.02,148.98,16.7797]
[1727304526595,0.2400118,149.02,148.99,6.7117]
[1727304526986,0.2400118,149.02,149.0,6.7113]
[1727304527602,0.2400118,149.02,149.0,21.8211]
[1727304528283,0.2400118,149.02,149.0,15.1098]
[1727304528901,20.2400118,149.02,149.0,15.1098]
[1727304529084,6.7109,149.01,148.96,15.1098]
[1727304529419,6.7109,149.01,148.96,21.8229]
[1727304529824,6.9505118,149.02,148.96,21.8229]
[1727304531085,20.0,149.01,148.98,6.7122]
[1727304531586,20.0,149.01,148.97,6.7126]
[1727304531781,0.2400118,149.02,148.98,1.34215748]
[1727304532000,0.2400118,149.02,148.98,6.7122]
[1727304533808,0.2400118,149.02,148.97,23.4936]
[1727304534006,0.2400118,149.02,148.98,1.34204801]
[1727304534191,0.2400118,149.02,148.99,6.7116]
[1727304534892,0.2400118,149.02,149.0,8.05315479]
[1727304535509,0.2400118,149.02,149.01,6.7109]
[1727304535701,0.2400118,149.02,149.01,12.9528]
[1727304535896,0.2400118,149.02,149.01,6.2419]
[1727304540421,0.2400118,149.02,148.97,13.2141]
[1727304541292,0.2400118,149.02,148.97,6.5018]
[1727304541697,0.2400118,149.02,148.97,13.2144]
[1727304542610,0.2400118,149.02,148.96,15.1098]
[1727304542829,6.7117,149.0,148.96,15.1098]
[1727304543020,26.7119,148.99,148.93,30.0614]
[1727304543227,20.0,148.99,148.93,30.0614]
[1727304543633,0.2400118,149.02,148.93,23.3473]
[1727304543924,6.7124,148.98,148.93,16.7859]
[1727304544122,6.7119,148.99,148.93,16.7859]
[1727304544296,20.0,148.98,148.94,6.7137]
[1727304544498,20.0,148.98,148.93,16.7859]
[1727304544499,20.0,149.0,148.95,6.7133]
[1727304545216,20.0,149.01,148.94,0.12549]
[1727304545422,20.0,149.01,148.94,24.027864]
[1727304545596,20.0,149.01,148.95,1.34221773]
[1727304545796,0.2400118,149.02,148.96,0.25098]
[1727304545994,0.2400118,149.02,148.96,24.027864]
[1727304546315,0.2400118,149.02,148.99,6.7117]
[1727304546528,0.2400118,149.02,149.0,1.34198481]
[1727304546895,0.2400118,149.02,148.99,22.3631]
[1727304547103,0.2400118,149.02,149.01,1.34198487]
[1727304547812,0.2400118,149.02,149.01,8.05288487]
[1727304548400,0.2400118,149.02,149.01,8.30386487]
[1727304548725,0.2400118,149.02,149.01,30.738764]
[1727304549225,0.2400118,149.02,149.01,38.64225867]
[1727304549724,0.2400118,149.02,149.01,88.9562017]
[1727304549925,0.2400118,149.07,149.05,6.7088]
[1727304550098,0.2400118,149.07,149.06,1.3413196]
[1727304550305,0.2400118,149.07,149.04,23.4829]
[1727304550921,0.2400118,149.07,149.02,30.738064]
[1727304551142,0.2400118,149.07,149.02,6.96118]
[1727304551326,0.2400118,149.07,149.01,6.5619]
[1727304551644,6.9482118,149.07,149.01,6.5619]
[1727304551837,0.2400118,149.07,149.06,6.7087]
[1727304552356,0.2400118,149.07,149.06,47.28234904]
[1727304552522,0.2400118,149.11,149.07,24.027864]
[1727304552731,0.2400118,149.11,149.09,6.7069]
[1727304552927,0.2400118,149.11,149.1,6.83239]
[1727304553140,0.2400118,149.11,149.1,8.29872512]
[1727304553348,0.2400118,149.11,149.1,30.734764]
[1727304555538,0.2400118,149.11,149.1,6.95788]
[1727304556720,0.2400118,149.11,149.1,62.3896508]
[1727304557531,0.2400118,149.11,149.1,62.38949409]
[1727304558530,0.2400118,149.11,149.1,61.04880415]
[1727304558939,0.2400118,149.11,149.1,62.38942925]
[1727304559244,0.3416981,149.16,149.15,6.95558]
[1727304559620,0.3416981,149.16,149.15,30.732464]
[1727304560035,0.3416981,149.16,149.15,61.04650415]
[1727304560247,0.3416981,149.16,149.15,62.38676734]
[1727304560649,0.3416981,149.16,149.15,82.38676734]
[1727304561028,21.2922,149.28,149.19,6.7028]
[1727304561029,6.769473,149.26,149.19,6.7028]
[1727304561252,6.769473,149.26,149.2,1.3399733]
[1727304561253,7.2092991,149.26,149.2,1.3399733]
[1727304561449,7.2092991,149.26,149.2,8.0419733]
[1727304562262,7.2092991,149.26,149.21,6.82739]
[1727304563450,6.7002,149.25,149.2,16.755]
[1727304563752,0.5095991,149.26,149.18,6.7029]
[1727304564451,6.7008,149.24,149.18,6.7029]
[1727304564938,0.5095991,149.26,149.19,6.7028]
[1727304565258,20.0,149.24,149.18,24.027864]
[1727304565427,7.2092991,149.26,149.21,6.7019]
[1727304565628,7.2092991,149.26,149.2,6.82779]
[1727304566533,0.5095991,149.26,149.2,6.82779]
[1727304566839,6.7002,149.25,149.2,6.82779]
[1727304567041,7.2093991,149.26,149.2,6.82779]
[1727304567240,0.5095991,149.26,149.19,23.4591]
[1727304567439,6.7002,149.25,149.19,23.4591]
[1727304567854,6.7009,149.24,149.19,16.7563]
[1727304568554,0.5095991,149.26,149.2,24.027864]
[1727304568736,0.5095991,149.26,149.2,0.12549]
[1727304569060,6.7005,149.25,149.19,23.459]
[1727304569969,0.5095991,149.26,149.19,23.459]
[1727304570138,6.701,149.23,149.19,16.7563]
[1727304570457,6.7014,149.23,149.16,23.4644]
[1727304570659,20.0,149.22,149.13,15.2384]
[1727304570859,20.0,149.22,149.12,16.7641]
[1727304570860,20.0,149.2,149.12,16.7641]
[1727304571158,20.0,149.2,149.1,6.7064]
[1727304572053,6.7038,149.17,149.11,6.7064]
[1727304572629,6.7066,149.11,149.09,15.2384]
[1727304572828,43.776884,149.17,149.09,15.2384]
[1727304573054,43.776884,149.17,149.04,22.9929]
[1727304573255,6.7055,149.13,149.06,6.8672786]
[1727304573834,6.7055,149.13,149.07,0.25098]
[1727304576427,59.3085146,149.17,149.06,0.1586786]
[1727304576631,20.0,149.13,149.06,6.8671786]
[1727304576832,20.0,149.13,149.07,6.95918]
[1727304577072,20.0,149.13,149.08,1.34111257]
[1727304578938,20.0,149.13,149.07,6.95918]
[1727304581549,6.7056,149.13,149.07,6.95918]
[1727304582458,6.7056,149.13,149.07,6.83369]
[1727304583060,20.0,149.16,149.07,6.83369]
[1727304583061,6.7046,149.15,149.09,30.609474]
[1727304583247,6.7046,149.15,149.07,35.82922767]
[1727304583444,6.7052,149.14,149.07,16.89579]
[1727304583648,6.7055,149.13,149.07,23.60389]
[1727304584960,6.7051,149.14,149.08,8.17420514]
[1727304585764,6.7051,149.14,149.08,6.83309]
[1727304587062,6.7057,149.13,149.07,16.89579]
[1727304588155,6.7057,149.13,149.07,16.7703]
[1727304588356,6.7057,149.13,149.07,23.4785]
[1727304588872,6.7051,149.14,149.08,30.735164]
[1727304589076,6.7051,149.14,149.08,24.027864]
[1727304589261,6.7047,149.15,149.09,8.04818529]
[1727304589663,6.7047,149.15,149.09,6.7072]
[1727304593183,0.0897306,149.17,149.14,6.7051]
[1727304593390,0.0897306,149.17,149.13,6.7054]
[1727304594988,0.0897306,149.17,149.11,40.04429]
[1727304595170,0.0897306,149.17,149.12,6.7059]
[1727304595373,6.7935306,149.17,149.12,6.7059]
[1727304595584,6.7935306,149.17,149.11,46.75059]
[1727304595887,6.7043,149.16,149.11,46.75059]
[1727304596681,6.7048,149.15,149.11,23.153]
[1727304596988,6.7052,149.14,149.11,16.6289]
[1727304597690,0.0897306,149.17,149.08,23.4771]
[1727304597691,6.7056,149.13,149.08,23.4771]
[1727304598777,0.0897306,149.17,149.08,16.7694]
[1727304598983,6.7051,149.14,149.09,6.7073]
[1727304599805,6.7056,149.13,149.08,23.4771]
[1727304600289,6.706,149.12,149.08,16.7694]
[1727304600473,43.9921046,149.17,149.07,15.328]
[1727304600474,23.9921046,149.17,149.07,15.328]
[1727304600678,23.9921046,149.17,149.08,1.34120904]
[1727304600679,6.7061,149.12,149.08,1.34120904]
[1727304600878,6.7065,149.11,149.07,15.328]
[1727304601401,6.706,149.12,149.08,1.34123019]
[1727304601693,6.706,149.12,149.07,22.0362]
[1727304601893,6.7055,149.13,149.08,8.04877157]
[1727304602392,0.0897306,149.17,149.1,0.12549]
[1727304602602,0.0897306,149.17,149.11,6.7064]
[1727304602603,6.7042,149.16,149.11,6.7064]
[1727304603295,6.7935306,149.17,149.12,6.7055]
[1727304603492,0.0897306,149.17,149.13,6.7051]
[1727304603869,0.0897306,149.17,149.14,6.705]
[1727304604984,0.0897306,149.17,149.13,16.763]
[1727304605181,0.0897306,149.17,149.1,16.7669]
[1727304605503,6.7051,149.14,149.09,6.7072]
[1727304605872,0.0897306,149.17,149.07,32.0983]
[1727304606076,6.7058,149.13,149.08,6.7077]
[1727304606999,43.9921046,149.17,149.07,32.0983]
[1727304607181,6.7069,149.1,149.06,0.1586786]
[1727304607391,23.902374,149.14,149.06,0.1586786]
[1727304607581,6.7074,149.09,149.06,0.1586786]
[1727304607796,42.3596,149.15,149.06,0.1586786]
[1727304608103,42.3596,149.15,149.07,1.34117589]
[1727304608294,6.7055,149.14,149.08,6.7074]
[1727304608605,6.7055,149.14,149.09,6.7072]
[1727304608797,6.7047,149.15,149.1,8.04788622]
[1727304609110,0.0897306,149.17,149.09,16.7683]
[1727304609296,6.7051,149.14,149.09,23.4755]
[1727304609477,6.7046,149.15,149.1,6.7068]
[1727304610402,6.7042,149.16,149.11,6.7061]
[1727304610707,0.0897306,149.17,149.13,6.7055]
[1727304610888,0.0897306,149.17,149.14,1.3406697]
[1727304611093,0.0897306,149.17,149.14,8.0454697]
[1727304611290,0.0897306,149.17,149.14,6.7048]
[1727304611694,0.0897306,149.17,149.15,8.04505349]
[1727304612385,0.0897306,149.17,149.14,16.7627]
[1727304614011,0.0897306,149.17,149.13,6.7051]
[1727304614182,0.0897306,149.17,149.11,16.89119]